fUSD/lending_fUSD_20240216
["ID","MTS","AMOUNT","RATE_DAILY","PERIOD"]
[314177812,1708047054370,-529.22,0.00039452,7]
[314177813,1708047054380,-567.16,0.00039452,7]
[314177814,1708047054396,-500.0,0.00039452,7]
[314177815,1708047054406,-502.32419121,0.00039452,7]
[314177816,1708047054415,-540.72,0.00039452,7]
[314177817,1708047054425,-571.58,0.00039452,7]
[314177818,1708047054434,-500.0,0.00039452,7]
[314177819,1708047054444,-500.0,0.00039452,7]
[314177820,1708047054453,-500.0,0.00039452,7]
[314177821,1708047054462,-721.24,0.00039452,7]
[314177822,1708047054472,-642.45,0.00039452,7]
[314177823,1708047054482,-500.0,0.00039452,7]
[314177824,1708047054491,-500.0,0.00039452,7]
[314177825,1708047054501,-207.17601019,0.00039452,7]
[314177826,1708047054510,-500.0,0.00039452,7]
[314177827,1708047054520,-1409.78,0.00039452,7]
[314177828,1708047054529,-574.0,0.00039452,7]
[314177829,1708047054538,-7971.43,0.00039452,7]
[314177830,1708047054547,-1127.98,0.00039452,7]
[314177831,1708047054557,-500.0,0.00039452,7]
[314177832,1708047054567,-682.14,0.00039452,7]
[314177833,1708047054576,-500.0,0.00039452,7]
[314177834,1708047054586,-288.092847,0.00039452,14]
[314177835,1708047054595,-333.021624,0.00039498,24]
[314177836,1708047054605,-394.68,0.000395,7]
[314177837,1708047054614,-186.0,0.000395,7]
[314177838,1708047054624,-151.0,0.00039503,2]
[314177839,1708047054633,-200.0,0.00039518,2]
[314177840,1708047054643,-158.06,0.00039531,2]
[314177841,1708047054652,-3242.3554087,0.00039568,2]
[314177842,1708047054663,-7060.0,0.00039576,14]
[314177843,1708047054673,-175.19204288,0.00039576,30]
[314177844,1708047054682,-750.0,0.00039576,2]
[314177845,1708047054692,-526.50714536,0.00039576,3]
[314177846,1708047054702,-7812.84831677,0.00039576,2]
[314177847,1708047054711,-2605.56786598,0.00039576,2]
[314177848,1708047054721,-286.63150246,0.00039576,30]
[314177849,1708047054730,-154.99999924,0.00039576,2]
[314177850,1708047054740,-247.97297168,0.00039576,15]
[314177851,1708047054749,-9184.06253278,0.00039576,4]
[314177852,1708047054759,-5222.80894417,0.00039576,10]
[314177853,1708047054768,-176.58837034,0.00039576,30]
[314177854,1708047054949,-333.0,0.00039576,2]
[314177855,1708047054959,-82128.62962919,0.00039576,60]
[314177856,1708047054969,-53455.84533722,0.00039576,30]
[314177857,1708047054978,-155.0,0.00039576,120]
[314177858,1708047054987,-564.50592405,0.00039576,2]
[314177859,1708047054997,-200.0,0.00039576,120]
[314177860,1708047055006,-300.0,0.00039576,120]
[314177861,1708047055015,-151.0,0.00039576,30]
[314177862,1708047055025,-150.0,0.00039576,30]
[314177863,1708047055034,-1510.8137,0.00039576,7]
[314177864,1708047055042,-1254.74,0.00039579,2]
[314177865,1708047055051,-151.0,0.00039581,7]
[314177866,1708047055060,-333.021624,0.00039588,26]
[314177867,1708047055069,-1119.77,0.0003963,2]
[314177868,1708047055079,-186.0,0.00039637,7]
[314177869,1708047055088,-364.0,0.0003964,2]
[314177870,1708047055096,-23401.24339038,0.00039664,13]
[314177871,1708047055105,-333.021624,0.00039688,26]
[314177872,1708047055115,-299.99999901,0.000397,2]
[314177873,1708047055124,-151.0,0.00039718,7]
[314177874,1708047055133,-500.0,0.00039726,7]
[314177875,1708047055143,-151.0,0.00039726,7]
[314177876,1708047055153,-500.0,0.00039726,7]
[314177877,1708047055162,-650.0,0.00039726,31]
[314177878,1708047055172,-650.0,0.00039726,31]
[314177879,1708047055181,-640.11523944,0.00039726,31]
[314177880,1708047055190,-500.0,0.00039726,7]
[314177881,1708047055200,-500.0,0.00039726,7]
[314177882,1708047055209,-500.0,0.00039726,7]
[314177883,1708047055219,-615.18,0.00039726,7]
[314177884,1708047055228,-500.0,0.00039726,7]
[314177885,1708047055238,-500.0,0.00039726,7]
[314177886,1708047055247,-500.0,0.00039726,7]
[314177887,1708047055256,-500.0,0.00039726,7]
[314177888,1708047055266,-1799.59,0.00039726,7]
[314177889,1708047055276,-500.0,0.00039726,7]
[314177890,1708047055285,-670.83,0.00039726,7]
[314177891,1708047055297,-511.61,0.00039726,7]
[314177892,1708047055307,-172.25444274,0.00039726,7]
[314177893,1708047055316,-500.0,0.00039726,7]
[314177894,1708047055326,-597.55,0.00039726,7]
[314177895,1708047055336,-500.0,0.00039726,7]
[314177896,1708047055345,-500.0,0.00039726,7]
[314177897,1708047055354,-500.0,0.00039726,7]
[314177898,1708047055369,-1340.23,0.00039726,7]
[314177899,1708047055378,-500.0,0.00039726,7]
[314177900,1708047055390,-529.22,0.00039726,7]
[314177901,1708047055399,-500.0,0.00039726,7]
[314177902,1708047055409,-540.72,0.00039726,7]
[314177903,1708047055419,-571.58,0.00039726,7]
[314177904,1708047055429,-500.0,0.00039726,7]
[314177905,1708047055441,-500.0,0.00039726,7]
[314177906,1708047055450,-500.0,0.00039726,7]
[314177907,1708047055459,-721.24,0.00039726,7]
[314177908,1708047055468,-642.45,0.00039726,7]
[314177909,1708047055478,-500.0,0.00039726,7]
[314177910,1708047055487,-500.0,0.00039726,7]
[314177911,1708047055496,-500.0,0.00039726,7]
[314177912,1708047055506,-1409.78,0.00039726,7]
[314177913,1708047055515,-574.0,0.00039726,7]
[314177914,1708047055525,-7971.43,0.00039726,7]
[314177915,1708047055534,-1127.98,0.00039726,7]
[314177916,1708047055543,-434.77534201,0.00039726,7]
[314177917,1708047055553,-682.14,0.00039726,7]
[314177918,1708047055562,-500.0,0.00039726,7]
[314177919,1708047055571,-205.0,0.00039729,12]
[314177920,1708047055581,-1050.0,0.00039737,7]
[314177921,1708047055590,-628.0,0.00039737,7]
[314177922,1708047055600,-728.0,0.00039737,7]
[314177923,1708047055609,-200.0,0.00039737,7]
[314177924,1708047055619,-155.0,0.0003974,2]
[314177925,1708047055628,-333.021624,0.00039748,26]
[314177926,1708047055637,-186.0,0.00039774,7]
[314177927,1708047055647,-150.0,0.00039781,2]
[314177928,1708047055656,-1075.48122115,0.00039789,2]
[314177929,1708047055666,-967.19,0.00039792,2]
[314177930,1708047055675,-2746.19619291,0.00039799,2]
[314177931,1708047055685,-1078.60385041,0.00039799,2]
[314177932,1708047055694,-456.06,0.000398,3]
[314177933,1708047055704,-456.06,0.000398,3]
[314177934,1708047055714,-456.06,0.000398,3]
[314177935,1708047055723,-456.06,0.000398,3]
[314177936,1708047055732,-456.06,0.000398,3]
[314177937,1708047055742,-456.06,0.000398,3]
[314177938,1708047055751,-456.06,0.000398,3]
[314177939,1708047055760,-456.06,0.000398,3]
[314177940,1708047055769,-456.06,0.000398,3]
[314177941,1708047055778,-456.06,0.000398,3]
[314177942,1708047055787,-456.06,0.000398,3]
[314177943,1708047055797,-456.06,0.000398,3]
[314177944,1708047055805,-456.06,0.000398,3]
[314177945,1708047055815,-456.06,0.000398,3]
[314177946,1708047055824,-456.06,0.000398,3]
[314177947,1708047055833,-456.06,0.000398,3]
[314177948,1708047055842,-456.06,0.000398,3]
[314177949,1708047055852,-456.06,0.000398,3]
[314177950,1708047055861,-456.06,0.000398,3]
[314177951,1708047055870,-456.06,0.000398,3]
[314177952,1708047055880,-155.01,0.000398,3]
[314177953,1708047055889,-155.01,0.000398,3]
[314177954,1708047055898,-150.0,0.00039814,2]
[314177955,1708047055907,-395.68959334,0.00039819,2]
[314177956,1708047055916,-155.05,0.00039831,2]
[314177957,1708047055925,-151.0,0.00039855,7]
[314177958,1708047055935,-333.021624,0.00039888,26]
[314177959,1708047055944,-150.0,0.00039891,2]
[314177960,1708047055953,-150.0,0.00039898,2]
[314177961,1708047055963,-1002.7243,0.00039899,2]
[314177962,1708047055972,-2000.0,0.000399,2]
[314177963,1708047055981,-2000.0,0.000399,2]
[314177964,1708047055991,-2000.0,0.000399,2]
[314177965,1708047056001,-2000.0,0.000399,2]
[314177966,1708047056010,-5789.0248855,0.000399,2]
[314177967,1708047056018,-186.0,0.00039911,7]
[314177968,1708047056028,-150.0,0.00039955,2]
[314177969,1708047056037,-200.0,0.0003999,7]
[314177970,1708047056046,-200.0,0.0003999,7]
[314177971,1708047056056,-200.0,0.0003999,7]
[314177972,1708047056065,-200.0,0.0003999,7]
[314177973,1708047056075,-167.0,0.00039991,2]
[314177974,1708047056084,-151.0,0.00039992,7]
[314177975,1708047056093,-333.021624,0.00039998,26]
[314177976,1708047056101,-500.0,0.00039999,31]
[314177977,1708047056110,-537.15798791,0.00039999,31]
[314177978,1708047056119,-500.0,0.00039999,31]
[314177979,1708047056128,-500.0,0.00039999,31]
[314177980,1708047056137,-500.0,0.00039999,31]
[314177981,1708047056146,-500.0,0.00039999,31]
[314177982,1708047056154,-500.0,0.00039999,31]
[314177983,1708047056164,-500.0,0.00039999,31]
[314177984,1708047056173,-500.0,0.00039999,31]
[314177985,1708047056182,-500.0,0.00039999,31]
[314177986,1708047056192,-500.0,0.00039999,31]
[314177987,1708047056202,-500.0,0.00039999,31]
[314177988,1708047056211,-500.0,0.00039999,31]
[314177989,1708047056221,-500.0,0.00039999,31]
[314177990,1708047056230,-383.20012634,0.00039999,31]
[314177991,1708047056240,-500.0,0.00039999,31]
[314177992,1708047056249,-367.16575533,0.00039999,31]
[314177993,1708047056258,-500.0,0.00039999,31]
[314177994,1708047056267,-500.0,0.00039999,31]
[314177995,1708047056277,-500.0,0.00039999,31]
[314177996,1708047056286,-500.0,0.00039999,31]
[314177997,1708047056295,-500.0,0.00039999,31]
[314177998,1708047056305,-500.0,0.00039999,31]
[314177999,1708047056315,-500.0,0.00039999,31]
[314178000,1708047056325,-500.0,0.00039999,31]
[314178001,1708047056334,-500.0,0.00039999,31]
[314178002,1708047056343,-500.0,0.00039999,31]
[314178003,1708047056353,-500.0,0.00039999,31]
[314178004,1708047056362,-500.0,0.00039999,31]
[314178005,1708047056371,-500.0,0.00039999,31]
[314178006,1708047056380,-418.45870426,0.00039999,31]
[314178007,1708047056390,-206.83489763,0.00039999,31]
[314178008,1708047056400,-1000.0,0.0004,2]
[314178009,1708047056409,-671.52494074,0.0004,30]
[314178010,1708047056419,-9170.0,0.0004,2]
[314178011,1708047056429,-263.48442642,0.0004,14]
[314178012,1708047056438,-22048.96829809,0.0004,7]
[314178013,1708047056448,-4782.21900044,0.0004,2]
[314178014,1708047056458,-157044.43166716,0.0004,30]
[314178015,1708047056467,-7415.40109919,0.0004,30]
[314178016,1708047056476,-4524.39513112,0.0004,7]
[314178017,1708047056485,-5000.0,0.0004,20]
[314178018,1708047056495,-484288.13708919,0.0004,30]
[314178019,1708047056504,-2000.0,0.0004,120]
[314178020,1708047056513,-935.33564336,0.0004,5]
[314178021,1708047056522,-342.48,0.0004,7]
[314178022,1708047056531,-1442.02848616,0.0004,30]
[314178023,1708047056540,-649.57611292,0.0004,4]
[314178024,1708047056549,-447.30802397,0.0004,4]
[314178025,1708047056558,-63603.49482712,0.0004,7]
[314178026,1708047056568,-255.0,0.0004,12]
[314178027,1708047056577,-255.0,0.0004,12]
[314178028,1708047056586,-255.0,0.0004,12]
[314178029,1708047056595,-3000.0,0.0004,41]
[314178030,1708047056604,-1000.0,0.0004,2]
[314178031,1708047056613,-255.0,0.0004,12]
[314178032,1708047056623,-500.0,0.0004,7]
[314178033,1708047056632,-255.0,0.0004,12]
[314178034,1708047056641,-500.0,0.0004,7]
[314178035,1708047056650,-255.0,0.0004,12]
[314178036,1708047056660,-450.0,0.0004,2]
[314178037,1708047056669,-500.0,0.0004,7]
[314178038,1708047056679,-500.0,0.0004,7]
[314178039,1708047056688,-500.0,0.0004,7]
[314178040,1708047056699,-615.18,0.0004,7]
[314178041,1708047056708,-500.0,0.0004,7]
[314178042,1708047056718,-500.0,0.0004,7]
[314178043,1708047056727,-500.0,0.0004,7]
[314178044,1708047056737,-500.0,0.0004,7]
[314178045,1708047056746,-1799.59,0.0004,7]
[314178046,1708047056756,-500.0,0.0004,7]
[314178047,1708047056766,-670.83,0.0004,7]
[314178048,1708047056776,-511.61,0.0004,7]
[314178049,1708047056785,-255.0,0.0004,12]
[314178050,1708047056794,-500.0,0.0004,7]
[314178051,1708047056803,-597.55,0.0004,7]
[314178052,1708047056813,-500.0,0.0004,7]
[314178053,1708047056822,-500.0,0.0004,7]
[314178054,1708047056831,-500.0,0.0004,7]
[314178055,1708047056841,-1340.23,0.0004,7]
[314178056,1708047056851,-500.0,0.0004,7]
[314178057,1708047056860,-529.22,0.0004,7]
[314178058,1708047056869,-494.87016296,0.0004,7]
[314178059,1708047056879,-540.72,0.0004,7]
[314178060,1708047056888,-571.58,0.0004,7]
[314178061,1708047056897,-500.0,0.0004,7]
[314178062,1708047056906,-500.0,0.0004,7]
[314178063,1708047056916,-500.0,0.0004,7]
[314178064,1708047056925,-721.24,0.0004,7]
[314178065,1708047056934,-642.45,0.0004,7]
[314178066,1708047056945,-500.0,0.0004,7]
[314178067,1708047056954,-500.0,0.0004,7]
[314178068,1708047056963,-500.0,0.0004,7]
[314178069,1708047056972,-1409.78,0.0004,7]
[314178070,1708047056982,-574.0,0.0004,7]
[314178071,1708047056991,-7971.43,0.0004,7]
[314178072,1708047057000,-1127.98,0.0004,7]
[314178073,1708047057010,-682.14,0.0004,7]
[314178074,1708047057020,-500.0,0.0004,7]
[314178075,1708047057029,-150.0,0.00040006,2]
[314178076,1708047057038,-3000.0,0.0004001,41]
[314178077,1708047057055,-5480.514483,0.0004002,41]
[314178078,1708047057066,-150.0,0.00040023,2]
[314178079,1708047057076,-1500.0,0.0004003,2]
[314178080,1708047057085,-186.0,0.00040048,7]
[314178081,1708047057097,-150.0,0.00040054,2]
[314178082,1708047057107,-150.0,0.0004007,2]
[314178083,1708047057117,-150.0,0.00040071,2]
[314178084,1708047057127,-1050.0,0.00040082,7]
[314178085,1708047057136,-628.0,0.00040082,7]
[314178086,1708047057146,-728.0,0.00040082,7]
[314178087,1708047057155,-200.0,0.00040082,7]
[314178088,1708047057164,-166.66666666,0.00040087,30]
[314178089,1708047057174,-166.66666666,0.00040104,30]
[314178090,1708047057183,-151.0,0.00040129,7]
[314178091,1708047057193,-150.0,0.00040135,2]
[314178092,1708047057203,-161.32139665,0.00040147,30]
[314178093,1708047057212,-333.021624,0.00040148,26]
[314178094,1708047057222,-1500.0,0.00040157,2]
[314178095,1708047057231,-150.0,0.00040175,2]
[314178096,1708047057240,-150.0,0.00040176,2]
[314178097,1708047057249,-239.0,0.00040185,7]
[314178098,1708047057259,-166.23561943,0.00040192,30]
[314178099,1708047057268,-150.0,0.00040193,2]
[314178100,1708047057278,-150.0,0.00040207,2]
[314178101,1708047057287,-150.0,0.00040218,2]
[314178102,1708047057296,-150.0,0.00040226,2]
[314178103,1708047057305,-158.24,0.00040226,2]
[314178104,1708047057317,-1000.0,0.00040241,10]
[314178105,1708047057327,-411.0,0.00040264,5]
[314178106,1708047057336,-151.0,0.00040266,7]
[314178107,1708047057345,-500.0,0.00040273,7]
[314178108,1708047057356,-500.0,0.00040273,7]
[314178109,1708047057365,-500.0,0.00040273,7]
[314178110,1708047057375,-500.0,0.00040273,7]
[314178111,1708047057384,-615.18,0.00040273,7]
[314178112,1708047057394,-500.0,0.00040273,7]
[314178113,1708047057404,-500.0,0.00040273,7]
[314178114,1708047057414,-500.0,0.00040273,7]
[314178115,1708047057423,-500.0,0.00040273,7]
[314178116,1708047057432,-1799.59,0.00040273,7]
[314178117,1708047057442,-500.0,0.00040273,7]
[314178118,1708047057452,-670.83,0.00040273,7]
[314178119,1708047057461,-511.61,0.00040273,7]
[314178120,1708047057470,-500.0,0.00040273,7]
[314178121,1708047057481,-597.55,0.00040273,7]
[314178122,1708047057490,-500.0,0.00040273,7]
[314178123,1708047057500,-500.0,0.00040273,7]
[314178124,1708047057509,-500.0,0.00040273,7]
[314178125,1708047057519,-1340.23,0.00040273,7]
[314178126,1708047057529,-500.0,0.00040273,7]
[314178127,1708047057539,-529.22,0.00040273,7]
[314178128,1708047057549,-540.72,0.00040273,7]
[314178129,1708047057558,-571.58,0.00040273,7]
[314178130,1708047057567,-500.0,0.00040273,7]
[314178131,1708047057576,-500.0,0.00040273,7]
[314178132,1708047057586,-500.0,0.00040273,7]
[314178133,1708047057595,-721.24,0.00040273,7]
[314178134,1708047057605,-642.45,0.00040273,7]
[314178135,1708047057615,-500.0,0.00040273,7]
[314178136,1708047057624,-455.07185321,0.00040273,7]
[314178137,1708047057634,-500.0,0.00040273,7]
[314178138,1708047057643,-1409.78,0.00040273,7]
[314178139,1708047057798,-574.0,0.00040273,7]
[314178140,1708047057808,-7971.43,0.00040273,7]
[314178141,1708047057818,-1127.98,0.00040273,7]
[314178142,1708047057827,-682.14,0.00040273,7]
[314178143,1708047057836,-500.0,0.00040273,7]
[314178144,1708047057846,-288.092847,0.00040274,14]
[314178145,1708047057854,-150.0,0.00040274,2]
[314178146,1708047057864,-3000.0,0.0004028,3]
[314178147,1708047057873,-150.0,0.00040288,2]
[314178148,1708047057882,-4597.46,0.0004029,30]
[314178149,1708047057891,-23401.24339038,0.00040291,14]
[314178150,1708047057900,-150.0,0.00040292,2]
[314178151,1708047057909,-200.0,0.000403,14]
[314178152,1708047057919,-342.48,0.000403,7]
[314178153,1708047057928,-180.0,0.000403,2]
[314178154,1708047057937,-239.0,0.00040322,7]
[314178155,1708047057946,-150.0,0.00040325,2]
[314178156,1708047057956,-3743.05915225,0.0004034,9]
[314178157,1708047057965,-4338.05992612,0.00040352,2]
[314178158,1708047057974,-173.59709461,0.0004036,14]
[314178159,1708047057983,-3310.77,0.000404,7]
[314178160,1708047057992,-150.0,0.00040402,2]
[314178161,1708047058001,-151.0,0.00040403,7]
[314178162,1708047058011,-150.0,0.00040417,30]
[314178163,1708047058021,-1050.0,0.00040427,7]
[314178164,1708047058031,-628.0,0.00040427,7]
[314178165,1708047058041,-728.0,0.00040427,7]
[314178166,1708047058050,-200.0,0.00040427,7]
[314178167,1708047058062,-161.32139665,0.00040436,30]
[314178168,1708047058072,-150.0,0.00040438,2]
[314178169,1708047058081,-151.021624,0.00040448,26]
[314178170,1708047058091,-150.0,0.0004045,2]
[314178171,1708047058101,-150.0,0.00040453,2]
[314178172,1708047058110,-239.0,0.00040459,7]
[314178173,1708047058121,-152.0,0.00040476,3]
[314178174,1708047058131,-456.06,0.000405,4]
[314178175,1708047058141,-456.06,0.000405,4]
[314178176,1708047058151,-456.06,0.000405,4]
[314178177,1708047058161,-456.06,0.000405,4]
[314178178,1708047058170,-456.06,0.000405,4]
[314178179,1708047058182,-456.06,0.000405,4]
[314178180,1708047058191,-456.06,0.000405,4]
[314178181,1708047058203,-456.06,0.000405,4]
[314178182,1708047058213,-456.06,0.000405,4]
[314178183,1708047058222,-456.06,0.000405,4]
[314178184,1708047058231,-456.06,0.000405,4]
[314178185,1708047058241,-456.06,0.000405,4]
[314178186,1708047058251,-456.06,0.000405,4]
[314178187,1708047058262,-456.06,0.000405,4]
[314178188,1708047058273,-456.06,0.000405,4]
[314178189,1708047058283,-456.06,0.000405,4]
[314178190,1708047058295,-456.06,0.000405,4]
[314178191,1708047058304,-456.06,0.000405,4]
[314178192,1708047058316,-456.06,0.000405,4]
[314178193,1708047058326,-456.06,0.000405,4]
[314178194,1708047058335,-155.01,0.000405,4]
[314178195,1708047058347,-155.01,0.000405,4]
[314178196,1708047058356,-150.0,0.00040512,2]
[314178197,1708047058366,-150.0,0.00040522,2]
[314178198,1708047058375,-151.0,0.0004054,7]
[314178199,1708047058387,-150.0,0.00040545,2]
[314178200,1708047058399,-500.0,0.00040547,7]
[314178201,1708047058408,-500.0,0.00040547,7]
[314178202,1708047058418,-600.0,0.00040547,2]
[314178203,1708047058427,-500.0,0.00040547,7]
[314178204,1708047058436,-500.0,0.00040547,7]
[314178205,1708047058446,-615.18,0.00040547,7]
[314178206,1708047058455,-500.0,0.00040547,7]
[314178207,1708047058464,-500.0,0.00040547,7]
[314178208,1708047058474,-500.0,0.00040547,7]
[314178209,1708047058484,-500.0,0.00040547,7]
[314178210,1708047058493,-1799.59,0.00040547,7]
[314178211,1708047058502,-500.0,0.00040547,7]
[314178212,1708047058511,-670.83,0.00040547,7]
[314178213,1708047058521,-511.61,0.00040547,7]
[314178214,1708047058530,-500.0,0.00040547,7]
[314178215,1708047058540,-597.55,0.00040547,7]
[314178216,1708047058551,-500.0,0.00040547,7]
[314178217,1708047058560,-500.0,0.00040547,7]
[314178218,1708047058569,-500.0,0.00040547,7]
[314178219,1708047058579,-1340.23,0.00040547,7]
[314178220,1708047058589,-500.0,0.00040547,7]
[314178221,1708047058598,-529.22,0.00040547,7]
[314178222,1708047058607,-540.72,0.00040547,7]
[314178223,1708047058617,-571.58,0.00040547,7]
[314178224,1708047058625,-500.0,0.00040547,7]
[314178225,1708047058635,-500.0,0.00040547,7]
[314178226,1708047058644,-500.0,0.00040547,7]
[314178227,1708047058654,-721.24,0.00040547,7]
[314178228,1708047058663,-642.45,0.00040547,7]
[314178229,1708047058673,-500.0,0.00040547,7]
[314178230,1708047058682,-500.0,0.00040547,7]
[314178231,1708047058691,-1409.78,0.00040547,7]
[314178232,1708047058702,-574.0,0.00040547,7]
[314178233,1708047058711,-7971.43,0.00040547,7]
[314178234,1708047058721,-1127.98,0.00040547,7]
[314178235,1708047058730,-682.14,0.00040547,7]
[314178236,1708047058740,-500.0,0.00040547,7]
[314178237,1708047058749,-1500.0,0.00040548,2]
[314178238,1708047058758,-150.0,0.00040565,2]
[314178239,1708047058767,-150.0,0.00040574,2]
[314178240,1708047058777,-333.0,0.00040576,2]
[314178241,1708047058786,-333.0,0.00040576,2]
[314178242,1708047058795,-1500.0,0.00040579,2]
[314178243,1708047058804,-150.0,0.00040583,2]
[314178244,1708047058813,-239.0,0.00040596,7]
[314178245,1708047058822,-200.0,0.000406,30]
[314178246,1708047058832,-342.48,0.000406,7]
[314178247,1708047058841,-150.0,0.00040624,2]
[314178248,1708047058850,-150.0,0.00040634,2]
[314178249,1708047058859,-150.0,0.00040637,2]
[314178250,1708047058868,-150.0,0.00040654,2]
[314178251,1708047058876,-150.0,0.00040671,2]
[314178252,1708047058885,-151.0,0.00040677,7]
[314178253,1708047058895,-150.0,0.00040681,2]
[314178254,1708047058904,-150.0,0.00040706,2]
[314178255,1708047058913,-266.21,0.00040733,2]
[314178256,1708047058922,-239.0,0.00040733,7]
[314178257,1708047058931,-191.26827364,0.00040739,2]
[314178258,1708047058940,-151.021624,0.00040748,27]
[314178259,1708047058950,-150.0,0.0004075,2]
[314178260,1708047058959,-150.0,0.00040753,2]
[314178261,1708047058967,-1254.74,0.00040769,2]
[314178262,1708047058977,-1050.0,0.00040772,7]
[314178263,1708047058986,-628.0,0.00040772,7]
[314178264,1708047058995,-728.0,0.00040772,7]
[314178265,1708047059004,-200.0,0.00040772,7]
[314178266,1708047059013,-150.0,0.00040787,2]
[314178267,1708047059022,-150.0,0.00040791,2]
[314178268,1708047059031,-600.0,0.00040794,7]
[314178269,1708047059041,-600.0,0.00040794,7]
[314178270,1708047059050,-600.0,0.00040794,7]
[314178271,1708047059060,-600.0,0.00040794,7]
[314178272,1708047059070,-600.0,0.00040794,7]
[314178273,1708047059080,-600.0,0.00040794,7]
[314178274,1708047059089,-600.0,0.00040794,7]
[314178275,1708047059099,-600.0,0.00040794,7]
[314178276,1708047059108,-600.0,0.00040794,7]
[314178277,1708047059118,-200.0,0.000408,2]
[314178278,1708047059126,-151.0,0.00040814,7]
[314178279,1708047059135,-500.0,0.00040821,7]
[314178280,1708047059144,-500.0,0.00040821,7]
[314178281,1708047059156,-600.0,0.00040821,7]
[314178282,1708047059165,-500.0,0.00040821,7]
[314178283,1708047059175,-500.0,0.00040821,7]
[314178284,1708047059184,-615.18,0.00040821,7]
[314178285,1708047059194,-500.0,0.00040821,7]
[314178286,1708047059204,-500.0,0.00040821,7]
[314178287,1708047059213,-500.0,0.00040821,7]
[314178288,1708047059222,-500.0,0.00040821,7]
[314178289,1708047059231,-1799.59,0.00040821,7]
[314178290,1708047059241,-500.0,0.00040821,7]
[314178291,1708047059250,-670.83,0.00040821,7]
[314178292,1708047059260,-511.61,0.00040821,7]
[314178293,1708047059269,-500.0,0.00040821,7]
[314178294,1708047059279,-597.55,0.00040821,7]
[314178295,1708047059289,-500.0,0.00040821,7]
[314178296,1708047059300,-500.0,0.00040821,7]
[314178297,1708047059311,-500.0,0.00040821,7]
[314178298,1708047059320,-1340.23,0.00040821,7]
[314178299,1708047059330,-500.0,0.00040821,7]
[314178300,1708047059339,-529.22,0.00040821,7]
[314178301,1708047059349,-540.72,0.00040821,7]
[314178302,1708047059358,-571.58,0.00040821,7]
[314178303,1708047059367,-500.0,0.00040821,7]
[314178304,1708047059376,-500.0,0.00040821,7]
[314178305,1708047059387,-500.0,0.00040821,7]
[314178306,1708047059396,-721.24,0.00040821,7]
[314178307,1708047059406,-642.45,0.00040821,7]
[314178308,1708047059415,-500.0,0.00040821,7]
[314178309,1708047059425,-500.0,0.00040821,7]
[314178310,1708047059434,-1409.78,0.00040821,7]
[314178311,1708047059443,-574.0,0.00040821,7]